bitfinex/quotes_BTCUSD_20240611
["timestamp","ask_amount","ask_price","bid_price","bid_amount"]
[1718123731966,0.09301212,66651.0,66650.0,4e-05]
[1718123733024,0.09301212,66654.0,66650.0,4e-05]
[1718123733454,0.2392,66660.0,66650.0,4e-05]
[1718123733455,0.09970714,66657.0,66650.0,4e-05]
[1718123733692,0.09970714,66657.0,66656.0,0.07215996]
[1718123733895,0.09970714,66657.0,66651.0,0.14431993]
[1718123733896,0.19271926,66657.0,66652.0,0.1]
[1718123734101,0.09970714,66657.0,66653.0,0.14431993]
[1718123734303,0.09970714,66657.0,66654.0,0.1]
[1718123734954,0.19271926,66657.0,66654.0,0.1]
[1718123735168,0.09970714,66657.0,66656.0,0.150024]
[1718123735373,0.09970714,66657.0,66656.0,0.250024]
[1718123735785,0.19251926,66657.0,66656.0,0.250024]
[1718123737213,0.09301212,66657.0,66656.0,0.250024]
[1718123737431,0.19251926,66657.0,66656.0,0.250024]
[1718123737647,0.19251926,66657.0,66656.0,0.490024]
[1718123740311,0.09301212,66657.0,66656.0,0.490024]
[1718123740520,0.19251926,66657.0,66656.0,0.490024]
[1718123740740,0.09301212,66657.0,66656.0,0.49337119]
[1718123740910,0.19251926,66657.0,66656.0,0.49337119]
[1718123743055,0.09301212,66657.0,66656.0,0.49337119]
[1718123743266,0.19251926,66657.0,66656.0,0.49337119]
[1718123743475,0.19251926,66657.0,66656.0,0.34334719]
[1718123744144,0.34361926,66657.0,66656.0,0.10334719]
[1718123744357,0.34361926,66657.0,66656.0,0.00334719]
[1718123744584,0.50051249,66657.0,66656.0,0.00334719]
[1718123744818,0.50051249,66657.0,66650.0,4e-05]
[1718123744819,0.19251926,66651.0,66650.0,4e-05]
[1718123745092,0.59105426,66651.0,66650.0,4e-05]
[1718123745536,0.57105426,66651.0,66650.0,4e-05]
[1718123745766,0.59105426,66651.0,66650.0,4e-05]
[1718123746232,0.59105426,66651.0,66640.0,0.009405]
[1718123746233,0.58989576,66641.0,66640.0,0.009405]
[1718123746453,0.73421569,66641.0,66640.0,0.009405]
[1718123747577,0.93421569,66641.0,66640.0,0.009405]
[1718123747922,0.92921569,66641.0,66640.0,0.009405]
[1718123748597,0.72921569,66641.0,66640.0,0.009405]
[1718123749225,0.73321569,66641.0,66640.0,0.009405]
[1718123749429,0.73321569,66641.0,66630.0,0.00011276]
[1718123749430,0.11932664,66636.0,66630.0,0.00011276]
[1718123749646,0.59985869,66636.0,66630.0,0.00011276]
[1718123752378,0.60185869,66636.0,66630.0,0.00011276]
[1718123752597,0.60285869,66636.0,66630.0,0.00011276]
[1718123753071,0.59985869,66636.0,66630.0,0.00011276]
[1718123753302,0.60585869,66636.0,66635.0,0.010394]
[1718123754017,0.60785869,66636.0,66635.0,0.010394]
[1718123754439,0.46353876,66636.0,66635.0,0.010394]
[1718123754886,0.44353876,66636.0,66635.0,0.010394]
[1718123755319,0.46353876,66636.0,66635.0,0.010394]
[1718123755538,0.19533876,66636.0,66635.0,0.010394]
[1718123755750,0.10732664,66636.0,66635.0,0.250394]
[1718123755982,0.19533876,66636.0,66635.0,0.25011]
[1718123756193,0.19533876,66636.0,66635.0,0.25326048]
[1718123756415,0.34853876,66636.0,66635.0,0.01226048]
[1718123756633,0.41793876,66636.0,66635.0,0.01226048]
[1718123756877,0.41793876,66636.0,66635.0,0.00911]
[1718123757310,0.41593876,66636.0,66635.0,0.00911]
[1718123758005,0.43593876,66636.0,66635.0,0.00911]
[1718123759324,0.93032769,66636.0,66635.0,0.00911]
[1718123759551,0.73032769,66636.0,66635.0,0.00911]
[1718123761109,0.41593876,66636.0,66635.0,0.00911]
[1718123761333,0.43793876,66636.0,66635.0,0.00911]
[1718123761559,0.43593876,66636.0,66635.0,0.00911]
[1718123762017,0.58900776,66636.0,66635.0,0.00911]
[1718123762449,0.58800776,66636.0,66635.0,0.00911]
[1718123764185,0.58600776,66636.0,66635.0,0.00911]
[1718123764618,0.58700776,66636.0,66635.0,0.00911]
[1718123764837,0.58600776,66636.0,66635.0,0.00911]
[1718123766559,0.58600776,66636.0,66635.0,0.0087916]
[1718123767652,0.41593876,66636.0,66635.0,0.0087916]
[1718123767876,0.18733876,66636.0,66635.0,0.0087916]
[1718123768369,0.18733876,66636.0,66635.0,0.3988626]
[1718123768828,0.18733876,66636.0,66635.0,0.40201071]
[1718123769732,0.18733876,66636.0,66635.0,0.01193971]
[1718123771552,0.09932664,66636.0,66635.0,0.01193971]
[1718123771776,0.0764,66648.0,66641.0,0.150057]
[1718123771777,0.18733876,66642.0,66641.0,0.150057]
[1718123772240,0.18733876,66642.0,66641.0,0.39316105]
[1718123773100,0.09932664,66642.0,66641.0,0.39316105]
[1718123773322,0.09932664,66645.0,66644.0,0.150051]
[1718123773554,0.09932664,66648.0,66644.0,0.55887324]
[1718123773768,0.18733876,66648.0,66647.0,0.1787]
[1718123773990,0.09932664,66648.0,66647.0,0.48988459]
[1718123774202,0.09932664,66648.0,66647.0,0.49320776]
[1718123774417,0.18733876,66648.0,66647.0,0.49320776]
[1718123774641,0.18733876,66648.0,66647.0,0.46455176]
[1718123775525,0.18733876,66648.0,66647.0,0.31450776]
[1718123775738,0.18733876,66648.0,66647.0,0.46455176]
[1718123776169,0.18733876,66648.0,66647.0,0.15336717]
[1718123776812,0.09932664,66648.0,66647.0,0.15336717]
[1718123777491,0.18733876,66648.0,66647.0,0.15336717]
[1718123777700,0.18819876,66648.0,66647.0,0.15336717]
[1718123778838,0.18819876,66648.0,66647.0,0.00332317]
[1718123779060,0.18819876,66648.0,66644.0,0.16001]
[1718123779061,0.18733876,66645.0,66644.0,0.06001]
[1718123779286,0.18733876,66645.0,66644.0,0.1]
[1718123780627,0.18733876,66645.0,66644.0,0.11785899]
[1718123782547,0.26503876,66645.0,66644.0,0.01785899]
[1718123782762,0.26503876,66645.0,66638.0,0.1]
[1718123782976,0.26503876,66645.0,66638.0,0.160015]
[1718123782977,0.08801212,66639.0,66638.0,0.160015]
[1718123783196,0.08801212,66639.0,66638.0,0.1]
[1718123785576,0.08801212,66639.0,66638.0,0.09364679]
[1718123786258,0.08801212,66639.0,66638.0,0.48371079]
[1718123786899,0.09932664,66642.0,66638.0,0.48371079]
[1718123786900,0.09932664,66642.0,66641.0,0.150057]
[1718123787109,0.09932664,66642.0,66641.0,0.14764703]
[1718123787547,0.09932664,66642.0,66641.0,0.48764703]
[1718123787759,0.09932664,66643.0,66642.0,0.150055]
[1718123788381,0.09932664,66643.0,66642.0,0.1533821]
[1718123789239,0.09932664,66643.0,66642.0,0.4645754]
[1718123789442,0.09932664,66643.0,66642.0,0.1533821]
[1718123789663,0.09932664,66644.0,66643.0,0.150053]
[1718123790169,0.09932664,66644.0,66643.0,0.1533801]
[1718123791267,0.09932664,66644.0,66643.0,0.46456449]
[1718123791703,0.09932664,66647.0,66643.0,0.14764703]
[1718123791921,0.00086,66648.0,66645.0,0.1787]
[1718123792132,0.00086,66648.0,66646.0,0.45550629]
[1718123792352,0.00086,66648.0,66647.0,0.31451346]
[1718123792597,0.00086,66648.0,66647.0,0.80103735]
[1718123792790,0.00086,66648.0,66647.0,0.70887739]
[1718123794949,0.08887212,66648.0,66647.0,0.94887739]
[1718123795178,0.08887212,66648.0,66647.0,0.56455746]
[1718123796539,0.00086,66648.0,66647.0,0.56455746]
[1718123796664,0.08887212,66648.0,66647.0,0.56455746]
[1718123796869,0.00086,66648.0,66647.0,0.56455746]
[1718123797284,0.08887212,66648.0,66647.0,0.56455746]
[1718123800234,0.08887212,66648.0,66647.0,0.56453469]
[1718123801077,0.18819876,66648.0,66647.0,0.31449069]
[1718123801219,0.37109876,66648.0,66647.0,0.0033271]
[1718123801415,0.37109876,66648.0,66637.0,0.1677251]
[1718123801416,0.08801212,66638.0,66637.0,0.1677251]
[1718123801639,0.16311212,66638.0,66637.0,0.47893845]
[1718123803078,0.16311212,66638.0,66637.0,0.57893845]
[1718123804093,0.16311212,66638.0,66637.0,0.57895221]
[1718123805749,0.16311212,66638.0,66637.0,0.57895124]
[1718123808049,0.0751,66638.0,66637.0,0.6511112]
[1718123808180,0.09932664,66640.0,66639.0,0.150062]
[1718123808569,0.09932664,66640.0,66639.0,0.250062]
[1718123808788,0.09932664,66643.0,66642.0,0.150055]
[1718123809001,0.09932664,66643.0,66642.0,0.4612564]
[1718123809686,0.18733876,66643.0,66642.0,0.4612564]
[1718123810748,0.09932664,66643.0,66642.0,0.4612564]
[1718123810920,0.18733876,66643.0,66642.0,0.4612564]
[1718123811130,0.26513876,66643.0,66642.0,0.4612564]
[1718123811547,0.26513876,66643.0,66642.0,0.46126294]
[1718123812188,0.26513876,66643.0,66642.0,0.46126343]
[1718123812621,0.26513876,66643.0,66642.0,0.31120843]
[1718123813313,0.26513876,66643.0,66639.0,0.1]
[1718123813535,0.08801212,66638.0,66637.0,0.1186051]
[1718123813745,0.08801212,66638.0,66637.0,0.66983425]
[1718123814550,0.08801212,66638.0,66637.0,0.42983425]
[1718123814764,0.08801212,66638.0,66637.0,0.57990025]
[1718123815587,0.08801212,66638.0,66637.0,0.58337034]
[1718123818316,0.08801212,66638.0,66637.0,0.58336856]
[1718123819888,0.09932664,66640.0,66638.0,0.150064]
[1718123820108,0.09932664,66640.0,66639.0,0.41122565]
[1718123820325,0.09932664,66640.0,66639.0,0.56128765]
[1718123820597,0.18733876,66640.0,66639.0,0.41470088]
[1718123820808,0.34273876,66640.0,66639.0,0.41470088]
[1718123821873,0.34273876,66640.0,66639.0,0.10347523]
[1718123822075,0.34273876,66640.0,66639.0,0.00347523]
[1718123822276,0.34273876,66640.0,66639.0,0.1]
[1718123822690,0.34273876,66640.0,66639.0,0.41469043]
[1718123826745,0.09932664,66640.0,66639.0,0.56475243]
[1718123826986,0.00086,66648.0,66640.0,0.02]
[1718123827200,0.00086,66648.0,66641.0,0.69555031]
[1718123827201,0.09932664,66645.0,66641.0,0.69555031]
[1718123827413,0.09932664,66644.0,66642.0,0.58993038]
[1718123827629,0.18733876,66645.0,66644.0,0.150051]
[1718123827851,0.18733876,66645.0,66644.0,0.46128138]
[1718123828076,0.18733876,66645.0,66644.0,0.70128138]
[1718123828346,0.18733876,66645.0,66644.0,0.7047416]
[1718123829782,0.18733876,66645.0,66644.0,0.4647416]
[1718123830008,0.59478676,66645.0,66644.0,0.3146906]
[1718123830228,0.59478676,66645.0,66644.0,0.00346022]
[1718123830441,0.44473876,66645.0,66644.0,0.00346022]
[1718123830651,0.44473876,66645.0,66637.0,0.000946]
[1718123830652,0.32541212,66638.0,66637.0,0.000946]
[1718123830942,0.42473876,66638.0,66637.0,0.000946]
[1718123831996,0.42473876,66638.0,66637.0,0.06319748]
[1718123833638,0.58905869,66638.0,66637.0,0.000946]
[1718123833838,0.58905869,66638.0,66630.0,0.00011276]
[1718123833839,0.10801212,66631.0,66630.0,0.00011276]
[1718123834171,0.44473876,66631.0,66630.0,0.00011276]
[1718123842624,0.44473876,66631.0,66630.0,0.00105876]
[1718123844540,0.58905869,66631.0,66630.0,0.00105876]
[1718123846352,0.56905869,66631.0,66630.0,0.00105876]
[1718123846565,0.58905869,66631.0,66630.0,0.00105876]
[1718123851602,0.78905869,66631.0,66630.0,0.00105876]
[1718123852224,0.93913869,66631.0,66630.0,0.00105876]
[1718123852634,0.83981205,66631.0,66630.0,0.00105876]
[1718123852852,0.93913869,66631.0,66630.0,0.00105876]
[1718123853058,1.03913869,66631.0,66630.0,0.00105876]
[1718123853295,0.80702976,66626.0,66625.0,0.00086]
[1718123853529,1.05134969,66626.0,66625.0,0.00086]
[1718123853768,1.05134969,66626.0,66619.0,0.009394]
[1718123853769,0.02,66620.0,66619.0,0.009394]
[1718123854035,0.81514976,66617.0,66599.0,0.009394]
[1718123854244,0.60708176,66603.0,66596.0,0.01837458]
[1718123854453,0.60708176,66603.0,66602.0,0.032416]
[1718123854454,0.75140169,66603.0,66602.0,0.032416]
[1718123854889,0.18733876,66603.0,66602.0,0.032416]
[1718123856883,0.20733876,66603.0,66602.0,0.032416]
[1718123857091,0.18733876,66603.0,66602.0,0.032416]
[1718123858120,0.50180169,66603.0,66602.0,0.032416]
[1718123858582,0.58210169,66603.0,66602.0,0.032416]
[1718123859277,0.67697186,66603.0,66602.0,0.022416]
[1718123859489,1.03727186,66603.0,66602.0,0.022416]
[1718123859703,0.83727186,66603.0,66602.0,0.022416]
[1718123860128,0.83727186,66603.0,66602.0,0.262416]
[1718123860129,0.74240169,66603.0,66602.0,0.262416]
[1718123860369,0.74240169,66603.0,66602.0,0.02607502]
[1718123860602,0.74240169,66603.0,66602.0,0.022416]
[1718123861019,1.44240169,66603.0,66602.0,0.022416]
[1718123861486,1.68972162,66603.0,66602.0,0.022416]
[1718123862161,1.54540169,66603.0,66602.0,0.022416]
[1718123862364,1.54740169,66603.0,66602.0,0.022416]
[1718123864244,1.24740169,66603.0,66602.0,0.022416]
[1718123864458,1.34740169,66603.0,66602.0,0.022416]
[1718123864880,1.24740169,66603.0,66602.0,0.022416]
[1718123865092,0.74740169,66603.0,66602.0,0.022416]
[1718123865293,0.18733876,66601.0,66596.0,0.023]
[1718123865526,0.33165869,66601.0,66596.0,0.023]
[1718123866187,0.18733876,66601.0,66596.0,0.023]
[1718123866413,0.20733876,66601.0,66596.0,0.023]
[1718123866633,0.18733876,66601.0,66596.0,0.023]
[1718123866886,0.18733876,66601.0,66597.0,0.07215996]
[1718123866887,0.09932664,66601.0,66597.0,0.07215996]
[1718123867134,0.09932664,66601.0,66598.0,0.023]
[1718123867373,0.09932664,66601.0,66599.0,0.24]
[1718123867374,0.18733876,66601.0,66599.0,0.24]
[1718123867595,0.18733876,66601.0,66600.0,0.02304]
[1718123869011,0.20733876,66601.0,66600.0,0.02304]
[1718123869269,0.35748576,66601.0,66600.0,0.02304]
[1718123869965,0.35748576,66601.0,66600.0,4e-05]
[1718123870179,0.63337423,66601.0,66600.0,4e-05]
[1718123870399,0.70847423,66601.0,66600.0,4e-05]
[1718123870625,0.57690569,66601.0,66600.0,4e-05]
[1718123872044,0.18733876,66601.0,66600.0,4e-05]
[1718123872255,0.18733876,66601.0,66600.0,0.00317857]
[1718123872465,0.18733876,66601.0,66600.0,0.02304]
[1718123872685,0.18833876,66601.0,66600.0,0.02304]
[1718123872901,0.18733876,66601.0,66600.0,0.02304]
[1718123873336,0.18833876,66601.0,66600.0,0.02304]
[1718123873974,0.18733876,66601.0,66600.0,0.02304]
[1718123874420,0.18733876,66601.0,66600.0,0.003194]
[1718123874640,0.18733876,66601.0,66600.0,0.026194]
[1718123875701,0.18733876,66601.0,66600.0,0.02304]
[1718123876168,0.18733876,66601.0,66600.0,0.022749]
[1718123876410,0.20733876,66601.0,66600.0,0.022749]
[1718123876638,0.18733876,66595.0,66594.0,0.009416]
[1718123876845,0.18733876,66595.0,66594.0,0.01255271]
[1718123878161,0.18733876,66595.0,66594.0,0.03555271]
[1718123878573,0.41683876,66595.0,66594.0,0.03555271]
[1718123878776,0.43683876,66595.0,66594.0,0.03555271]
[1718123878994,0.43683876,66595.0,66594.0,0.032416]
[1718123878995,0.41683876,66595.0,66594.0,0.032416]
[1718123880337,0.43683876,66595.0,66594.0,0.032416]
[1718123880564,0.73441969,66595.0,66594.0,0.032416]
[1718123882096,0.93441969,66595.0,66594.0,0.032416]
[1718123882307,0.73441969,66595.0,66594.0,0.032416]
[1718123883145,0.93441969,66595.0,66594.0,0.032416]
[1718123883353,1.73786166,66595.0,66594.0,0.009416]
[1718123883570,2.19588366,66595.0,66594.0,0.032416]
[1718123883777,2.32594431,66595.0,66594.0,0.032416]
[1718123883989,2.34833911,66595.0,66594.0,0.032416]
[1718123884206,2.2796847,66595.0,66594.0,0.032416]
[1718123884417,1.72562231,66595.0,66594.0,0.032416]
[1718123884653,1.41922073,66595.0,66594.0,0.032416]
[1718123884873,0.56525869,66595.0,66594.0,0.032416]
[1718123885084,0.19033876,66595.0,66594.0,0.033416]
[1718123885296,0.18933876,66595.0,66594.0,0.033416]
[1718123885509,0.21933876,66595.0,66594.0,0.033416]
[1718123885976,0.20133876,66595.0,66594.0,0.034416]
[1718123886201,0.19933876,66595.0,66594.0,0.033416]
[1718123887109,0.19933876,66595.0,66594.0,0.032416]
[1718123887110,0.18733876,66595.0,66594.0,0.032416]
[1718123887552,0.70733876,66595.0,66594.0,0.032416]
[1718123887768,1.19550797,66595.0,66594.0,0.0355796]
[1718123887987,1.19550797,66595.0,66594.0,0.032416]
[1718123888199,1.08505869,66595.0,66594.0,0.032416]
[1718123889053,1.08505869,66595.0,66594.0,0.009416]
[1718123889265,1.23521969,66595.0,66594.0,0.009416]
[1718123890512,1.23721969,66595.0,66594.0,0.009416]
[1718123891148,1.23521969,66595.0,66594.0,0.009416]
[1718123891375,1.23921969,66595.0,66594.0,0.009416]
[1718123892071,1.23721969,66595.0,66594.0,0.009416]
[1718123892505,1.21721969,66595.0,66594.0,0.009416]
[1718123893130,1.08451969,66595.0,66594.0,0.009416]
[1718123894018,1.55367433,66595.0,66594.0,0.009416]
[1718123894246,1.75367433,66595.0,66594.0,0.009416]
[1718123894460,1.75167433,66595.0,66594.0,0.009416]
[1718123894673,1.75167433,66595.0,66591.0,0.009405]
[1718123894674,0.81520676,66592.0,66591.0,0.009405]
[1718123894920,0.81520676,66592.0,66589.0,0.009416]
[1718123894921,0.81521076,66590.0,66589.0,0.009416]
[1718123895134,1.84686976,66588.0,66587.0,0.009416]
[1718123895342,1.99118969,66588.0,66587.0,0.009416]
[1718123896247,1.99118969,66588.0,66563.0,0.009405]
[1718123896248,0.43664476,66575.0,66563.0,0.009405]
[1718123896470,0.73236469,66575.0,66563.0,0.009405]
[1718123897357,0.33165869,66575.0,66566.0,0.01838708]
[1718123897607,0.18733876,66575.0,66567.0,0.07215996]
[1718123898325,0.18733876,66576.0,66574.0,0.022]
[1718123898552,0.18733876,66575.0,66574.0,0.24436796]
[1718123898791,0.18733876,66575.0,66574.0,0.30567618]
[1718123899002,0.150169,66592.0,66574.0,0.39370152]
[1718123899003,0.09932664,66577.0,66574.0,0.39370152]
[1718123899230,0.4793,66596.0,66579.0,0.02]
[1718123899231,0.09932664,66584.0,66579.0,0.02]
[1718123899460,0.09932664,66584.0,66583.0,0.07215996]
[1718123899905,0.08801212,66587.0,66583.0,0.23510351]
[1718123900138,0.09932664,66588.0,66584.0,0.16294355]
[1718123900139,0.08801212,66586.0,66584.0,0.16294355]
[1718123900341,0.08801212,66586.0,66585.0,0.06230119]
[1718123900847,0.08801212,66586.0,66585.0,0.16366374]
[1718123901464,0.18733876,66586.0,66585.0,0.16366374]
[1718123901632,0.18733876,66586.0,66585.0,0.06230119]
[1718123901798,0.18733876,66586.0,66579.0,0.1]
[1718123901799,0.08801212,66583.0,66579.0,0.1]
[1718123902001,0.08801212,66576.0,66575.0,0.1]
[1718123902489,0.08801212,66576.0,66575.0,0.20178889]
[1718123902695,0.08801212,66579.0,66575.0,0.20178889]
[1718123902895,0.08801212,66580.0,66578.0,0.1787]
[1718123903102,0.08801212,66581.0,66580.0,0.150195]
[1718123903309,0.08801212,66581.0,66580.0,0.3526839]
[1718123903510,0.09932664,66582.0,66581.0,0.150192]
[1718123903746,0.09932664,66582.0,66581.0,0.3526809]
[1718123904360,0.09932664,66582.0,66581.0,0.250192]
[1718123904567,0.09932664,66582.0,66581.0,0.35302081]
[1718123905038,0.18733876,66582.0,66581.0,0.20282881]
[1718123905441,0.18733876,66582.0,66581.0,0.20382881]
[1718123905643,0.18733876,66582.0,66581.0,0.20710213]
[1718123906316,0.18733876,66582.0,66581.0,0.44710213]
[1718123906753,0.18733876,66582.0,66581.0,0.44810213]
[1718123906959,0.18733876,66582.0,66581.0,0.20710213]
[1718123907379,0.18733876,66582.0,66581.0,0.20810213]
[1718123907828,0.20733876,66582.0,66581.0,0.10810213]
[1718123908041,0.35165869,66582.0,66581.0,0.00427332]
[1718123908274,0.61932456,66582.0,66581.0,0.00427332]
[1718123908495,0.58415869,66582.0,66581.0,0.001]
[1718123908716,0.58415869,66582.0,66581.0,0.002]
[1718123909142,1.03434869,66582.0,66581.0,0.002]
[1718123909996,1.19299469,66582.0,66581.0,0.001]
[1718123910226,0.55754476,66575.0,66574.0,0.01809334]
[1718123910454,0.93056469,66575.0,66574.0,0.01809334]
[1718123910658,0.73056469,66575.0,66574.0,0.01809334]
[1718123911752,0.73056469,66575.0,66574.0,0.02009334]
[1718123912177,0.18733876,66575.0,66574.0,0.02009334]
[1718123914303,0.20733876,66575.0,66574.0,0.02009334]
[1718123914504,0.18733876,66575.0,66574.0,0.02009334]
[1718123915989,0.58645869,66575.0,66574.0,0.02009334]
[1718123916195,0.73666469,66575.0,66574.0,0.02009334]
[1718123917055,0.83033116,66575.0,66574.0,0.02009334]
[1718123917255,0.73666469,66575.0,66574.0,0.02009334]
[1718123918315,0.83666469,66575.0,66574.0,0.02009334]
[1718123918525,1.03666469,66575.0,66574.0,0.02009334]
[1718123918729,0.83666469,66575.0,66574.0,0.02009334]
[1718123919631,0.83666469,66575.0,66574.0,0.01809334]
[1718123919830,1.03666469,66575.0,66574.0,0.01909334]
[1718123920133,1.03666469,66575.0,66574.0,0.02009334]
[1718123920355,1.18098462,66575.0,66574.0,0.02009334]
[1718123920563,1.43868462,66575.0,66574.0,0.02009334]
[1718123921174,1.43868462,66575.0,66574.0,0.01909334]
[1718123921854,1.71568476,66571.0,66570.0,0.009405]
[1718123922068,2.34422462,66571.0,66570.0,0.009405]
[1718123922290,1.49714084,66564.0,66550.0,4e-05]
[1718123922514,1.79916077,66564.0,66550.0,4e-05]
[1718123922778,2.09962277,66564.0,66550.0,4e-05]
[1718123923660,1.79916077,66564.0,66550.0,4e-05]
[1718123923789,1.9434807,66564.0,66550.0,4e-05]
[1718123924038,1.9434807,66564.0,66563.0,0.010405]
[1718123924214,1.9544807,66564.0,66563.0,0.010405]
[1718123925193,1.9544807,66564.0,66550.0,4e-05]
[1718123925194,0.60216984,66551.0,66550.0,4e-05]
[1718123925409,0.74648977,66551.0,66550.0,4e-05]
[1718123926982,0.50158977,66551.0,66550.0,4e-05]
[1718123927205,0.18700984,66551.0,66550.0,4e-05]
[1718123927652,0.18700984,66551.0,66550.0,0.00318864]
[1718123927892,0.18700984,66551.0,66550.0,4e-05]
[1718123928106,0.18700984,66551.0,66550.0,0.00418864]
[1718123928317,0.18700984,66551.0,66550.0,4e-05]
[1718123928523,0.18700984,66551.0,66550.0,0.00318864]
[1718123928701,0.18700984,66551.0,66550.0,0.00104]
[1718123928913,0.18700984,66551.0,66550.0,0.00418864]
[1718123929155,0.18700984,66551.0,66550.0,0.00104]
[1718123929359,0.18700984,66551.0,66550.0,0.00204]
[1718123929566,0.18700984,66551.0,66550.0,0.00518864]
[1718123931329,0.09932664,66551.0,66550.0,0.2276086]
[1718123931545,0.09932664,66551.0,66550.0,0.15544864]
[1718123931989,0.09932664,66551.0,66550.0,0.15344864]
[1718123932223,0.18700984,66551.0,66550.0,0.15444864]
[1718123933139,0.18700984,66551.0,66550.0,0.15344864]
[1718123933355,0.09932664,66551.0,66550.0,0.15344864]
[1718123934008,0.09932664,66551.0,66550.0,0.33214864]
[1718123934241,0.09932664,66551.0,66550.0,0.57214864]
[1718123934671,0.18700984,66551.0,66550.0,0.57314864]
[1718123935111,0.09932664,66551.0,66550.0,0.57314864]
[1718123935793,0.09932664,66551.0,66550.0,0.59314864]
[1718123936012,0.09932664,66551.0,66550.0,0.57314864]
[1718123936221,0.09932664,66551.0,66550.0,0.59314864]
[1718123937510,0.09932664,66551.0,66550.0,0.69583001]
[1718123938598,0.09932664,66551.0,66550.0,0.67583001]
[1718123938834,0.18700984,66551.0,66550.0,0.52557001]
[1718123939280,0.18700984,66551.0,66550.0,0.42288864]
[1718123940231,0.18700984,66551.0,66550.0,0.00418864]
[1718123940713,0.18700984,66551.0,66550.0,0.00104]
[1718123941157,0.18700984,66551.0,66550.0,0.00415718]
[1718123941401,0.09932664,66551.0,66550.0,0.15441918]
[1718123941648,0.09932664,66552.0,66551.0,0.15026]
[1718123942325,0.09932664,66552.0,66551.0,0.35207718]
[1718123942538,0.09932664,66552.0,66551.0,0.38419981]
[1718123942763,0.18700984,66552.0,66551.0,0.38419981]
[1718123942972,0.09932664,66552.0,66551.0,0.38419981]
[1718123943183,0.09932664,66553.0,66552.0,0.150257]
[1718123943407,0.09932664,66553.0,66552.0,0.35263963]
[1718123943847,0.09932664,66553.0,66552.0,0.35575681]
[1718123944293,0.09932664,66553.0,66552.0,0.25337418]
[1718123944509,0.09932664,66553.0,66552.0,0.35542381]
[1718123944735,0.09932664,66553.0,66552.0,0.59542381]
[1718123944736,0.18700984,66553.0,66552.0,0.59542381]
[1718123944987,0.09932664,66555.0,66552.0,0.59542381]
[1718123945216,0.09932664,66553.0,66552.0,0.49437418]
[1718123945451,0.09932664,66553.0,66552.0,0.34411718]
[1718123945685,0.09932664,66553.0,66552.0,0.44604988]
[1718123945912,0.09932664,66554.0,66553.0,0.150256]
[1718123946151,0.09932664,66554.0,66553.0,0.2521887]
[1718123946605,0.09932664,66554.0,66553.0,0.25530588]
[1718123947805,0.18700984,66554.0,66553.0,0.10504988]
[1718123948266,0.42320984,66554.0,66553.0,0.10504988]
[1718123948497,0.42320984,66554.0,66553.0,0.00311718]
[1718123948728,0.42320984,66554.0,66553.0,0.00411718]
[1718123948945,0.44320984,66554.0,66553.0,0.00411718]
[1718123949175,0.44320984,66554.0,66553.0,0.001]
[1718123949176,0.42320984,66554.0,66553.0,0.001]
[1718123950082,0.44320984,66554.0,66553.0,0.001]
[1718123951624,0.42320984,66554.0,66553.0,0.001]
[1718123952463,0.44320984,66554.0,66553.0,0.001]
[1718123954237,0.73778277,66554.0,66553.0,0.001]
[1718123954690,0.93778277,66554.0,66553.0,0.001]
[1718123955192,1.53778277,66554.0,66553.0,0.001]
[1718123955399,0.58336984,66551.0,66550.0,0.0009]
[1718123955609,0.8720097,66551.0,66550.0,0.0009]
[1718123956269,0.72761152,66551.0,66550.0,0.0009]
[1718123958192,0.72761152,66551.0,66550.0,0.0019]
[1718123961375,0.92761152,66551.0,66550.0,0.0019]
[1718123961583,0.72761152,66551.0,66550.0,0.0019]
[1718123962003,0.92761152,66551.0,66550.0,0.0019]
[1718123962429,0.82761152,66551.0,66550.0,0.0019]
[1718123962629,1.17193145,66551.0,66550.0,0.0019]
[1718123963250,1.43003145,66551.0,66550.0,0.0019]
[1718123964087,1.23003145,66551.0,66550.0,0.0019]
[1718123964511,1.43003145,66551.0,66550.0,0.0019]
[1718123964709,1.23003145,66551.0,66550.0,0.0009]
[1718123964924,1.23403145,66551.0,66550.0,0.0019]
[1718123965331,1.08493145,66551.0,66550.0,0.0019]
[1718123965533,1.58493145,66551.0,66550.0,0.0019]
[1718123965734,1.08493145,66551.0,66550.0,0.0019]
[1718123965937,1.58493145,66551.0,66550.0,0.0019]
[1718123966312,1.22068977,66551.0,66550.0,0.0019]
[1718123966515,0.91942977,66551.0,66550.0,0.0019]
[1718123966672,0.84432977,66551.0,66550.0,0.0019]
[1718123966873,0.70000984,66551.0,66550.0,0.0019]
[1718123967977,0.69100984,66551.0,66550.0,0.0019]
[1718123968404,0.68700984,66551.0,66550.0,0.0009]
[1718123968617,0.68700984,66551.0,66550.0,0.0019]
[1718123968890,0.68700984,66551.0,66550.0,0.0009]
[1718123969325,0.68700984,66551.0,66550.0,0.0019]
[1718123969975,0.70693159,66551.0,66550.0,0.0019]
[1718123970403,1.23771152,66551.0,66550.0,0.0019]
[1718123971068,1.23771152,66551.0,66550.0,0.0009]
[1718123971504,1.23771152,66551.0,66550.0,0.0019]
[1718123971921,1.23771152,66551.0,66550.0,0.0029]
[1718123972744,1.23771152,66551.0,66550.0,0.0009]
[1718123973171,1.23771152,66551.0,66550.0,0.0019]
[1718123974023,1.43771152,66551.0,66550.0,0.0019]
[1718123974441,1.43771152,66551.0,66550.0,0.0009]
[1718123974863,1.43971152,66551.0,66550.0,0.0009]
[1718123975275,1.23971152,66551.0,66550.0,0.0009]
[1718123975773,1.38403145,66551.0,66550.0,0.0009]
[1718123975978,1.38603145,66551.0,66550.0,0.0009]
[1718123976422,0.0876832,66536.0,66535.0,0.00620975]
[1718123976645,0.18700984,66536.0,66535.0,0.00620975]
[1718123977058,0.18700984,66536.0,66535.0,0.02440205]
[1718123977242,0.18700984,66536.0,66535.0,0.00620975]
[1718123978344,0.18700984,66536.0,66535.0,0.00720975]
[1718123978561,0.18700984,66536.0,66535.0,0.11850907]
[1718123978773,0.18700984,66536.0,66535.0,0.00720975]
[1718123978996,0.18700984,66536.0,66535.0,0.11850907]
[1718123979637,0.18700984,66536.0,66535.0,0.00720975]
[1718123979877,0.18700984,66536.0,66535.0,0.11740599]
[1718123980126,0.18700984,66536.0,66535.0,0.00720975]
[1718123980688,0.18700984,66536.0,66535.0,0.0104467]
[1718123981095,0.18700984,66536.0,66535.0,0.0094467]
[1718123981297,0.18700984,66536.0,66535.0,0.11968773]
[1718123981514,0.18700984,66536.0,66535.0,0.12068773]
[1718123981920,0.18700984,66536.0,66535.0,0.11968773]
[1718123982710,0.18700984,66536.0,66535.0,0.12068773]
[1718123984479,0.18700984,66536.0,66535.0,0.43242345]